Workbook

Sheet Instrukcja wypełniania DPAE
A1: INSTRUKCJA WYPEŁNIANIA DOKUMENTU PODSUMOWUJĄCEGO AUDYT ENERGETYCZNY Składanego jako załącznik do wniosku o płatność w ramach programu priorytetowego "Czyste Powietrze"
A2: 1. | B2: W Dokumencie należy wypełniać jedynie pola w kolorze białym, z wyjątkiem sytuacji opisanych poniżej w pkt 5.4 i 5.5 poniżej (pola w kolorze jasnożółtym lub jasnozielonym).
A3: 2. | B3: Pola w odcieniach szarości, a także pola w kolorze żółtym i zielonym zawierające jednostki nie powinny być wypełniane.
A4: 3. | B4: Sekcja I Dane o budynku mieszkalnym / lokalu mieszkalnym
A5: 3.1 | B5: W sekcji należy podać dane dot. budynku / lokalu mieszkalnego.
A6: 4. | B6: W sekcji II. Zakres rzeczowy wchodzący w skład wariantu optymalnego z audytu energetycznego (wariantu wybranego do realizacji przez audytora) należy wpisywać przedsięwzięcia/ulepszenia/usprawnienia wskazane do realizacji w wariancie optymalnym. Przedsięwzięcia te powinny być ujęte w sposób skrótowy/hasłowy, a jednocześnie powinny umożliwiać w prosty sposób ich weryfikację z pojęciami wpisanymi do audytu energetycznego, np.: modernizacja systemu grzewczego i systemu przygotowania ciepłej wody użytkowej w odniesieniu do kosztów kwalifikowanych Programu. W przypadku ocieplenia przegród budowlanych należy podać wartość współczynnika przenikania ciepła przegrody U przed termomodernizacją i po termomodernizacji. W pozostałych przypadkach należy wpisać "nie dotyczy". Jeżeli w audycie energetycznym znajduje się więcej pozycji z zakresu rzeczowego przedsięwzięcia jak wierszy w niniejszym Dokumencie podsumowującym audyt energetyczny, kolejne pozycje należy dodawać w jednym wierszu, co można zrobić przez użycie skrótu klawiszowego ALT+ENTER w oknie komórki.
A7: 4.2 | B7: Jeżeli audyt energetyczny uwzględnia instalację kolektorów słonecznych lub fotowoltaiki należy podać odpowiednio powierzchnię/moc instalacji.
A8: 5. | B8: Sekcja III. Wskaźniki rocznego zapotrzebowania na ciepło do ogrzewania budynku
A9: 5.1 | B9: Należy podać główne źródło ciepła wykorzystywane na potrzeby ogrzewania przed termomodernizacją i po termomodernizacji - źródło należy wybrać z listy rozwijanej. Jeżeli przedsięwzięcie nie obejmuje wymiany źródła ciepła w polu "przed termomodernizacją" należy wybrać właściwe źródło ciepła a w polu "po termomodernizacji" należy wybrać: "Nie obejmowało wymiany źródła ciepła".
A10: 5.2 | B10: Następnie należy podać wskaźnik rocznego zapotrzebowania na ciepło do ogrzewania budynku (bez uwzględnienia sprawności systemu grzewczego i przerw w ogrzewaniu) [kWh/(m2*rok)] przed termomodernizacją i po termomodernizacji. Jeżeli wskaźnik po termomodernizacji jest wyższy niż 80 kWh/(m2*rok) - wartość podświetla się na czerwono. Nie stanowi to o błędzie pod warunkiem spełnienia redukcji na poziomie min. 40%. Jeżeli redukcja wskaźnika jest mniejsza niż 40% - wartość wyświetla się na czerwono. Nie stanowi to o błędzie pod warunkiem osiągnięcia wartość wskaźnika na poziomie min. 80 kWh/(m2*rok).
A11: 5.3 | B11: Należy podać wskaźnik rocznego zapotrzebowania na ciepło do ogrzewania budynku (z uwzględnieniem sprawności systemu grzewczego i przerw w ogrzewaniu) [kWh/(m2*rok)] przed termomodernizacją i po termomodernizacji, który został obliczony w audycie energetycznym.
A12: 5.4 | B12: Następnie należy odpowiedzieć na pytanie: czy wskaźniki rocznego zapotrzebowania na nieodnawialną energię pierwotną do ogrzewania budynku przed termomodernizacją i po termomodernizacji zostały obliczone w audycie energetycznym? Jeżeli w ramach audytu energetycznego zostały obliczone te wartości - należy je wpisać w pola E28 i G28. W przeciwnym wypadku wartości zostaną wyliczone automatycznie.
A13: 5.5 | B13: Następnie należy odpowiedzić na pytania: Czy wartość redukcji emisji PM10/BaP/CO2 zostały wyliczone w audycie energetycznym. Jeżeli w ramach audytu energetycznego zostały obliczone te wartości - należy je wpisać odpowiednio w pola E34, E35 lub E36. W przeciwnym wypadku wartości zostaną wyliczone automatycznie.
A15: 7. | B15: W sekcji IV. Oświadczenia Audytora należy wpisać datę przekazania audytu energetycznego Beneficjentowi.
A16: 8. | B16: W sekcji V. Uwagi, komentarze, podpis Audytor ma możliwość zamieszczenia dodatkowych informacji dla Beneficjenta lub wojewódzkich funduszy ochrony środowiska i gospodarki wodnej.
A17: 9. | B17: W sekcji V. Uwagi, komentarze, podpis wymagany jest podpis Audytora. W sytuacji gdy Audytor podpisuje Dokument elektronicznie, w polu tym należy wpisać imię i nazwisko Audytora oraz dodać "PODPISANY ELEKTRONICZNIE". Następnie Dokument należy podpisać elektronicznie. W innym przypadku należy wydrukować Dokument i podpisać go ręcznie.
A19: 10. | B19: Do wniosku o płatność należy załączyć Dokument podsumowujący audyt energetyczny w wersji edytowalnej oraz w wersji podpisanej - np. jako skan podpisanego dokumentu, plik pdf podpisany elektronicznie, plik typu .zip z plikami podpisanymi i plikami podpisu.
A20: 11. | B20: Dokument podsumowujący audyt energetyczny potwierdza osiągnięcie co najmniej jednego ze wskaźników kompleksowej termomodernizacji (jako jednego z warunków przyznania dofinansowania w ramach programu priorytetowego "Czyste Powietrze" t.j. a) zmniejszenie zapotrzebowania na energię użytkową do 80 kWh/(m2*rok) lub b) zmniejszenie zapotrzebowania na energię użytkową o minimum 40% jeżeli pole walidacji jest w kolorze zielonym i wyświetla zapis: "Na podstawie niniejszego Dokumentu podsumowującego audyt energetyczny stwierdza się możliwość przyznania dotacji do przedsięwzięcia z kompleksową termomodernizacją budynku/lokalu mieszkalnego." Wyświetlanie powyższego komunikatu nie jest jednoznaczne z przyznaniem dofinansowania na kompleksową termomodernizację.
A21: 12. | B21: Uwaga! Pola z błędami są oznaczone na czerwono z różowym tłem.

Sheet DPAE
A1: DOKUMENT PODSUMOWUJĄCY AUDYT ENERGETYCZNY PODSUMOWANIE OBLICZEŃ AUDYTOWYCH Z WYLICZENIEM EFEKTÓW ENERGETYCZNYCH I EKOLOGICZNYCH ZAŁĄCZNIK DO WNIOSKU O PŁATNOŚĆ W RAMACH PROGRAMU PRIORYTETOWEGO CZYSTE POWIETRZE Niniejszy dokument nie stanowi audytu energetycznego, a jest jedynie jego podsumowaniem. Oryginalny audyt energetyczny powinien być przechowywany przez Beneficjenta i udostępniany do kontroli przez Wojewódzki Fundusz Ochrony Środowiska i Gospodarki Wodnej właściwy ze względu na lokalizację budynku/lokalu mieszkalnego, którego dotyczy, lub przez inny podmiot wskazany w umowie dotacji.
A2: I. Dane o budynku mieszkalnym / lokalu mieszkalnym
E3: Kod pocztowy | G3: Miejscowość
A4: Adres budynku jednorodzinnego mieszkalnego / lokalu mieszkalnego | E4: Ulica
E5: Nr budynku | G5: Nr lokalu
A6: Powierzchnia użytkowa budynku | E6: 100.0 | H6: m2
A7: II. Zakres rzeczowy wchodzący w skład wariantu optymalnego z audytu energetycznego (wariantu wybranego do realizacji przez audytora) 1)
B8: Nazwa | H8: Współczynnik przenikania ciepła przegrody U przed termomodernizacją | I8: Współczynnik przenikania ciepła przegrody U po termomodernizacji
A9: 1. | B9: Np. Modernizacja systemu grzewczego i systemu przygotowania ciepłej wody użytkowej | H9: Nie dotyczy | I9: Nie dotyczy
A10: 2. | B10: Np. Modernizacja przegrody ściana zewnętrzna piwnica i parter | H10: Np. 0,999 | I10: Np. 0,111
A11: 3. | B11: Np. Wymiana okien | H11: Np. 9,999 | I11: Np. 0,111
A12: 4.
A13: 5.
A14: 6.
A15: 7.
A16: 8.
A17: 9.
A18: 10.
A19: Odnawialne Źródła Energii (OZE) - jeśli dotyczy:
A20: 1. | B20: Kolektory słoneczne o powierzchni: | F20: m2 | G20: i mocy: | I20: kWc
A21: 2. | B21: Instalacja fotowoltaiczna (PV) o mocy: | I21: kWp
A22: III. Wskaźniki rocznego zapotrzebowania na ciepło do ogrzewania budynku i redukcji niektórych emisji - zgodnie z audytem energetycznym
E23: Przed termomodernizacją: | G23: Po termomodernizacji: | I23: Redukcja w [%]
E24: Wartość | F24: Jednostka | G24: Wartość | H24: Jednostka
A25: 1. | B25: Główne źródło ciepła | J25: =AND(G25='Dane brzegowe'!$C$18,E25='Dane brzegowe'!$C$4) -> FALSE
A26: 2. | B26: Wskaźnik rocznego zapotrzebowania na ciepło do ogrzewania budynku (bez uwzględnienia sprawności systemu grzewczego i przerw w ogrzewaniu)2) | F26: kWh/(m2*rok) | H26: kWh/(m2*rok) | I26: =IF(E26="","",IF(G26="","",ROUND((E26-G26)/E26,4))) -> 
A27: 3. | B27: Wskaźnik rocznego zapotrzebowania na ciepło do ogrzewania budynku (z uwzględnieniem sprawności systemu grzewczego i przerw w ogrzewaniu)3) | F27: kWh/(m2*rok) | H27: kWh/(m2*rok) | I27: =IF(E27="","",IF(G27="","",ROUND((E27-G27)/E27,4))) -> 
A28: 4. | B28: Wskaźnik rocznego zapotrzebowania na nieodnawialną energię pierwotną do ogrzewania budynku4) | C28: Czy wartość została obliczona w audycie energetycznym? | E28: =IF(D28="","",IF(D28="TAK","Należy TUTAJ wpisać wartość z audytu",IF(E25="","Podaj główne źródło ciepła - powyżej",IF(OR(AND(E25<>'Dane brzegowe'!$C$4,G25<>'Dane brzegowe'!$C$18),(AND(E25='Dane brzegowe'!$C$4,G25='Dane brzegowe'!$C$18))),"Błąd - przedsięwzięcie niezgodne z PPCP",IF(E27="","Należy uzupełnić pole dla EK - powyżej",E27*(VLOOKUP(E25,'Dane brzegowe'!$C$29:$L$36,4,FALSE))))))) ->  | F28: kWh/(m2*rok) | G28: =IF(D28="","",IF(D28="TAK","Należy TUTAJ wpisać wartość z audytu",IF(G25="","Podaj główne źródło ciepła - powyżej",IF(OR(AND(E25<>'Dane brzegowe'!$C$4,G25<>'Dane brzegowe'!$C$18),(AND(E25='Dane brzegowe'!$C$4,G25='Dane brzegowe'!$C$18))),"Błąd - przedsięwzięcie niezgodne z PPCP",IF(G27="","Należy uzupełnić pole dla EK - powyżej",IF(G25='Dane brzegowe'!$C$18,G27*(VLOOKUP(E25,'Dane brzegowe'!$C$29:$L$36,4,FALSE)),IF(OR($G$25='Dane brzegowe'!$C$6,$G$25='Dane brzegowe'!$C$7,$G$25='Dane brzegowe'!$C$8,$G$25='Dane brzegowe'!$C$9),MAX(0,G27*(VLOOKUP(G25,'Dane brzegowe'!$C$4:$L$18,4,FALSE))-($H$21*750/$E$6)),G27*(VLOOKUP(G25,'Dane brzegowe'!$C$4:$L$18,4,FALSE))))))))) ->  | H28: kWh/(m2*rok) | I28: =IF(OR(E25="",G25=""),"",IF(OR(E25="",G25=""),"",IF(OR(AND(E25<>'Dane brzegowe'!$C$4,G25<>'Dane brzegowe'!$C$18),(AND(E25='Dane brzegowe'!$C$4,G25='Dane brzegowe'!$C$18))),"Błąd - przedsięwzięcie niezgodne z PPCP",IF(OR(E28="",E28="Należy TUTAJ wpisać wartość z audytu"),"",IF(G28=0,"0%",IFERROR(ROUND((E28-G28)/E28,4),"")))))) -> 
A29: 5. | B29: Emisja pyłu PM10 | C29: Czy wartość została obliczona w audycie energetycznym? | E29: =IF(D29="","",IF(D29="TAK","Należy TUTAJ wpisać wartość z audytu",IF(E25="","Podaj główne źródło ciepła - powyżej",IF(OR(AND(E25<>'Dane brzegowe'!$C$4,G25<>'Dane brzegowe'!$C$18),(AND(E25='Dane brzegowe'!$C$4,G25='Dane brzegowe'!$C$18))),"Błąd - przedsięwzięcie niezgodne z PPCP",IF(OR(E28="",E28="Należy TUTAJ wpisać wartość z audytu"),"Należy uzupełnić pola dla EP - powyżej",IF(E28="Należy uzupełnić pole dla EK - powyżej","Należy uzupełnić pole dla EK - powyżej",IF(E28="Podaj główne źródło ciepła - powyżej","Podaj główne źródło ciepła - powyżej",(E28*$E$6/1000*(VLOOKUP(E25,'Dane brzegowe'!$C$29:$L$36,9,FALSE)))))))))) ->  | F29: g/rok | G29: =IF(D29="","",IF(D29="TAK","Należy TUTAJ wpisać wartość z audytu",IF(G25="","Podaj główne źródło ciepła - powyżej",IF(OR(AND(E25<>'Dane brzegowe'!$C$4,G25<>'Dane brzegowe'!$C$18),(AND(E25='Dane brzegowe'!$C$4,G25='Dane brzegowe'!$C$18))),"Błąd - przedsięwzięcie niezgodne z PPCP",IF(OR(G28="",G28="Należy TUTAJ wpisać wartość z audytu"),"Należy uzupełnić pola dla EP - powyżej",IF(G28="Należy uzupełnić pole dla EK - powyżej","Należy uzupełnić pole dla EK - powyżej",IF(G28="Podaj główne źródło ciepła - powyżej","Podaj główne źródło ciepła - powyżej",(G28*$E$6/1000*(IF(G25='Dane brzegowe'!$C$18,(VLOOKUP(E25,'Dane brzegowe'!$C$29:$L$36,9,FALSE)),(VLOOKUP(G25,'Dane brzegowe'!$C$4:$L$18,9,FALSE)))))))))))) ->  | H29: g/rok | I29: =IF(OR(E25="",G25=""),"",IF(OR(AND(E25<>'Dane brzegowe'!$C$4,G25<>'Dane brzegowe'!$C$18),(AND(E25='Dane brzegowe'!$C$4,G25='Dane brzegowe'!$C$18))),"Błąd - przedsięwzięcie niezgodne z PPCP",IF(OR(E29="",E29="Należy TUTAJ wpisać wartość z audytu",E29="Należy uzupełnić wartość EP powyżej"),"",IF(AND(E29=0,G29=0),0,IFERROR(ROUND((E29-G29)/E29,4),""))))) -> 
A30: 6. | B30: Emisja benzo(a)pirenu | C30: Czy wartość została obliczona w audycie energetycznym? | E30: =IF(D30="","",IF(D30="TAK","Należy TUTAJ wpisać wartość z audytu",IF(E25="","Podaj główne źródło ciepła - powyżej",IF(OR(AND(E25<>'Dane brzegowe'!$C$4,G25<>'Dane brzegowe'!$C$18),(AND(E25='Dane brzegowe'!$C$4,G25='Dane brzegowe'!$C$18))),"Błąd - przedsięwzięcie niezgodne z PPCP",IF(OR(E28="",E28="Należy TUTAJ wpisać wartość z audytu"),"Należy uzupełnić pola dla EP - powyżej",IF(E28="Należy uzupełnić pole dla EK - powyżej","Należy uzupełnić pole dla EK - powyżej",IF(E28="Podaj główne źródło ciepła - powyżej","Podaj główne źródło ciepła - powyżej",(E28*$E$6/1000*(VLOOKUP(E25,'Dane brzegowe'!$C$29:$L$36,10,FALSE)))))))))) ->  | F30: g/rok | G30: =IF(D30="","",IF(D30="TAK","Należy TUTAJ wpisać wartość z audytu",IF(G25="","Podaj główne źródło ciepła - powyżej",IF(OR(AND(E25<>'Dane brzegowe'!$C$4,G25<>'Dane brzegowe'!$C$18),(AND(E25='Dane brzegowe'!$C$4,G25='Dane brzegowe'!$C$18))),"Błąd - przedsięwzięcie niezgodne z PPCP",IF(OR(G28="",G28="Należy TUTAJ wpisać wartość z audytu"),"Należy uzupełnić pola dla EP - powyżej",IF(G28="Należy uzupełnić pole dla EK - powyżej","Należy uzupełnić pole dla EK - powyżej",IF(G28="Podaj główne źródło ciepła - powyżej","Podaj główne źródło ciepła - powyżej",(G28*$E$6/1000*((IF(G25='Dane brzegowe'!$C$18,(VLOOKUP(E25,'Dane brzegowe'!$C$29:$L$36,10,FALSE)),(VLOOKUP(G25,'Dane brzegowe'!$C$4:$L$18,10,FALSE))))))))))))) ->  | H30: g/rok | I30: =IF(OR(E25="",G25=""),"",IF(OR(AND(E25<>'Dane brzegowe'!$C$4,G25<>'Dane brzegowe'!$C$18),(AND(E25='Dane brzegowe'!$C$4,G25='Dane brzegowe'!$C$18))),"Błąd - przedsięwzięcie niezgodne z PPCP",IF(OR(E30="",E30="Należy TUTAJ wpisać wartość z audytu",E30="Należy uzupełnić wartość EP powyżej"),"",IF(AND(E30=0,G30=0),0,IFERROR(ROUND((E30-G30)/E30,4),""))))) -> 
A31: 7. | B31: Emisja CO2 | C31: Czy wartość została obliczona w audycie energetycznym? | E31: =IF(D31="","",IF(D31="TAK","Należy TUTAJ wpisać wartość z audytu",IF(E25="","Podaj główne źródło ciepła - powyżej",IF(OR(AND(E25<>'Dane brzegowe'!$C$4,G25<>'Dane brzegowe'!$C$18),(AND(E25='Dane brzegowe'!$C$4,G25='Dane brzegowe'!$C$18))),"Błąd - przedsięwzięcie niezgodne z PPCP",IF(E27="","Należy uzupełnić pole dla EK - powyżej",(E27*$E$6/1000*(VLOOKUP(E25,'Dane brzegowe'!$C$29:$L$36,8,FALSE)))))))) ->  | F31: kg/rok | G31: =IF(D31="","",IF(D31="TAK","Należy TUTAJ wpisać wartość z audytu",IF(G25="","Podaj główne źródło ciepła - powyżej",IF(OR(AND(E25<>'Dane brzegowe'!$C$4,G25<>'Dane brzegowe'!$C$18),(AND(E25='Dane brzegowe'!$C$4,G25='Dane brzegowe'!$C$18))),"Błąd - przedsięwzięcie niezgodne z PPCP",IF(G27="","Należy uzupełnić pole dla EK - powyżej",MAX(G27*$E$6/1000*(IF(G25='Dane brzegowe'!$C$18,(VLOOKUP(E25,'Dane brzegowe'!$C$29:$L$36,8,FALSE)),(VLOOKUP(G25,'Dane brzegowe'!$C$4:$L$18,8,FALSE))))-($H$21*750/10^3*'Dane brzegowe'!J17),0)))))) ->  | H31: kg/rok | I31: =IF(OR(E25="",G25=""),"",IF(OR(AND(E25<>'Dane brzegowe'!$C$4,G25<>'Dane brzegowe'!$C$18),(AND(E25='Dane brzegowe'!$C$4,G25='Dane brzegowe'!$C$18))),"Błąd - przedsięwzięcie niezgodne z PPCP",IF(OR(E31="",E31="Należy TUTAJ wpisać wartość z audytu",E31="Należy uzupełnić wartość EP powyżej"),"",IF(AND(E31=0,G31=0),0,IFERROR(ROUND((E31-G31)/E31,4),""))))) -> 
A32: 8. | B32: EK – wskaźnik rocznego zapotrzebowania na energię końcową | F32: kWh/(m2*rok) | H32: kWh/(m2*rok) | I32: =IF(E32="","",IF(G32="","",ROUND((E32-G32)/E32,4))) -> 
A33: 9. | B33: EP – wskaźnik rocznego zapotrzebowania na nieodnawialną energię pierwotną | F33: kWh/(m2*rok) | H33: kWh/(m2*rok) | I33: =IF(E33="","",IF(G33="","",ROUND((E33-G33)/E33,4))) -> 
A34: IV. Oświadczenia Audytora
A35: 1. | B35: Oświadczam, że wykonałem/wykonałam audyt energetyczny dotyczący budynku mieszkalnego / lokalu mieszkalnego wskazanego w części I niniejszego Dokumentu i przekazałem/przekazałam go Beneficjentowi w dniu:
A36: 2. 3. | B36: Oświadczam, że dane wpisane w niniejszym Dokumencie podsumowującym audyt energetyczny są zgodne z audytem energetycznym, o którym mowa w Oświadczeniu nr 1. Oświadczam, że w ramach audytu energetycznego wykonałem/wykonałam inwentaryzację techniczno-budowlaną budynku oraz wynikającą z niej ocenę stanu technicznego budynku w zakresie istotnym dla wskazania właściwych ulepszeń i przedsięwzięć termomodernizacyjnych.
A37: V. Uwagi, komentarze, podpis
A38: Uwagi/komentarze: | E38: Imię, nazwisko, data i podpis Audytora:
A42: Objaśnienia
A43: 1) W tabeli należy wpisać rodzaje zadań (ulepszeń, usprawnień) wskazanych przez audytora do realizacji na podstawie wariantu optymalnego
A44: 2) Zgodnie z pozycją 6.8 w Tabeli 2. Karta audytu energetycznego budynku w Załączniku nr 1 do Rozporządzenia (Dz. U. 2009 nr 43 poz. 346 z późn. zm.) 3) Zgodnie z pozycją 6.9 w Tabeli 2. Karta audytu energetycznego budynku w Załączniku nr 1 do Rozporządzenia (Dz. U. 2009 nr 43 poz. 346 z późn. zm.) 4) Wskaźnik nie uwzględnia zapotrzebowania na energię pomocniczą oraz energię dla systemu przygotowania ciepłej wody użytkowej i chłodzenia.
A45: 5) Wyliczenie efektów ekologicznych na podstawie danych wprowadzonych w pkt III. 6) Rozumiane jako moc zainstalowanych mikroinstalacji fotowoltaicznych.
A47: WALIDACJA
A48: =IF(E28="Błąd - przedsięwzięcie niezgodne z PPCP","Błąd - przedsięwzięcie niezgodne z PPCP", IF(OR(E25="",E26="",E27="",E28="",E28="Należy TUTAJ wpisać wartość z audytu",E29="",E29="Należy TUTAJ wpisać wartość z audytu",E30="",E30="Należy TUTAJ wpisać wartość z audytu",E31="",E31="Należy TUTAJ wpisać wartość z audytu",G25="",G26="",G27="",G28="",G28="Należy TUTAJ wpisać wartość z audytu",G29="",G29="Należy TUTAJ wpisać wartość z audytu",G30="",G30="Należy TUTAJ wpisać wartość z audytu",G31="",G31="Należy TUTAJ wpisać wartość z audytu",I26="")=TRUE,"Brak możliwości wykonania walidacji - brak wymaganych danych.", IF(AND(E26<=80,I26<0.4)=TRUE,"Na podstawie niniejszego Dokumentu podsumowującego audyt energetyczny nie jest możliwe przyznanie dotacji do przedsięwzięcia z kompleksową termomodernizacją budynku/lokalu mieszkalnego.", IF(OR(G26<=80,I26>=0.4)=FALSE,"Na podstawie niniejszego Dokumentu podsumowującego audyt energetyczny nie jest możliwe przyznanie dotacji do przedsięwzięcia z kompleksową termomodernizacją budynku/lokalu mieszkalnego.", "Na podstawie niniejszego Dokumentu podsumowującego audyt energetyczny stwierdza się możliwość przyznania dotacji do przedsięwzięcia z kompleksową termomodernizacją budynku/lokalu mieszkalnego.")))) -> Brak możliwości wykonania walidacji - brak wymaganych danych.
A51: Wersja 3.0

Sheet Dane brzegowe
A1: Przedsięwzięcie dot. źródła ciepła | B1: Lp. | C1: Źródło ciepła | D1: paliwo: | E1: uśredniona sezonowa sprawność źródła ciepła 1) | F1: współczynnik nakładu nieodnawialnej energii pierwotnej 2) | G1: Wskaźniki emisji zanieczyszczeń - przeliczone na GJ | J1: Wskaźniki emisji zanieczyszczeń - przeliczenie na MWh (do sporządzenia obliczeń metodą wskaźnikową)
G2: CO2 3) | H2: PM10 4) | I2: BaP 4) | J2: CO2 | K2: PM10 | L2: BaP
G3: kg/GJ | H3: g/GJ | I3: g/GJ | J3: kg/MWh | K3: g/MWh | L3: g/MWh
A4: Stary piec: | B4: 0 | C4: Istniejące źródło ciepła na paliwo stałe - "kopciuch" | D4: paliwo stałe | E4: 0.65 | F4: 1.1 | G4: 94.770 | H4: 427.000 | I4: 0.280 | J4: =G4*3.6 -> 341.172 | K4: =H4*3.6 -> 1,537.200 | L4: =I4*3.6 -> 1.008
A5: Wymiana żródła ciepła na żródło zgodne z Programem Czyste Powietrze: | B5: 1 | C5: Podłączenie do sieci ciepłowniczej wraz z przyłączem | D5: sieć ciepłownicza | E5: 0.95 | F5: 1.3 | G5: 93.490 | J5: =G5*3.6 -> 336.564
B6: 2 | C6: Pompa ciepła powietrze/woda | D6: energia elektryczna | E6: 2.8 | F6: 3 | G6: 193.889 | J6: 698.000
B7: 3 | C7: Pompa ciepła powietrze/woda o podwyższonej klasie efektywności energetycznej | D7: energia elektryczna | E7: 2.9 | F7: 3 | G7: 193.889 | J7: 698.000
B8: 4 | C8: Pompa ciepła typu powietrze/powietrze | D8: energia elektryczna | E8: 2.2 | F8: 3 | G8: 193.889 | J8: 698.000
B9: 5 | C9: Gruntowa pompa ciepła o podwyższonej klasie efektywności energetycznej | D9: energia elektryczna | E9: 3.9 | F9: 3 | G9: 193.889 | J9: 698.000
B10: 6 | C10: Kocioł gazowy kondensacyjny | D10: gaz ziemny | E10: 0.95 | F10: 1.1 | G10: 55.440 | H10: 0.300 | J10: =G10*3.6 -> 199.584 | K10: 1.080
B11: 7 | C11: Kotłownia gazowa (w tym: przyłącze gazowe i instalacja) | D11: gaz ziemny | E11: 0.95 | F11: 1.1 | G11: 55.440 | H11: 0.300 | J11: 199.584 | K11: 1.080
B12: 8 | C12: Kocioł olejowy kondensacyjny | D12: olej opałowy | E12: 0.95 | F12: 1.1 | G12: 76.560 | H12: 2.000 | I12: =0.12/1000 -> 0.000120 | J12: 275.616 | K12: 7.200 | L12: =I12*3.6 -> 0.000432
B13: 10 | C13: Kocioł zgazowujący drewno | D13: biomasa | E13: 0.85 | F13: 0.2 | G13: 112.000 | H13: 16.000 | J13: 0.000 | K13: 57.600
B14: 10 | C14: Kocioł zgazowujący drewno o podwyższonym standardzie | D14: biomasa | E14: 0.85 | F14: 0.2 | G14: 112.000 | H14: 16.000 | J14: 0.000 | K14: =H14*3.6 -> 57.600
B15: 11 | C15: Kocioł na pellet drzewny | D15: pellet | E15: 0.85 | F15: 0.2 | G15: 112.000 | H15: 16.000 | J15: 0.000 | K15: 57.600
B16: 12 | C16: Kocioł na pellet drzewny o podwyższonym standardzie | D16: pellet | E16: 0.85 | F16: 0.2 | G16: 112.000 | H16: 16.000 | J16: 0.000 | K16: 57.600
B17: 13 | C17: Ogrzewanie elektryczne | D17: energia elektryczna | E17: 1 | F17: 3 | G17: =J17/3.6 -> 193.889 | J17: 698.000
A18: Brak wymiany źródła | B18: 0 | C18: Nie obejmowało wymiany źródła ciepła
B19: 9 | C19: Kocioł na węgiel z automatycznym podajnikiem | D19: paliwo stałe | E19: 0.85 | F19: 1.1 | G19: 94.770 | H19: 18.000 | J19: =G19*3.6 -> 341.172 | K19: 64.800
A20: 1) | B20: Na podstawie dostępnej literatury
A21: 2) | B21: Zgodnie z Rozporządzeniem Ministra Infrastruktury i Rozwoju z dnia 27 lutego 2015 r. w sprawie metodologii wyznaczania charakterystyki energetycznej budynku lub części budynku oraz świadectw charakterystyki energetycznej.
A22: 3) | B22: Zgodnie z opracowaniem KOBIZE: "Wartości opałowe (WO) i wskaźniki emisji CO2 (WE) w roku 2019 do raportowania w ramach Systemu Handlu Uprawnieniami do Emisji za rok 2022" z grudnia 2021 r. lub WSKAŹNIKI EMISYJNOŚCI CO2, SO2, NOx, CO i pyłu całkowitego DLA ENERGII ELEKTRYCZNEJ na podstawie informacji zawartych w Krajowej bazie o emisjach gazów cieplarnianych i innych substancji za 2020 rok
A23: 4) | B23: Zgodnie z zestawienie tabelarycznym Wskaźniki emisji zanieczyszczeń powietrza emitowanych z indywidualnych źródeł ciepła opracowane przez Instytut Chemicznej Przeróbki Węgla (wartości wskaźników zostały zaktualizowane w związku z pracą zrealizowaną przez Instytut Chemicznej Przeróbki Węgla na zlecenie IOŚ-PIB KOBiZE. Aktualizacja dokonywana w zależności od zmian prawnych i gospodarczych). (dane dla pozycji: 8, 21, 22, 33,34) Dane na dzień: 23 czerwca 2021. Dostęp: https://dane.gov.pl/pl/dataset/2182/resource/31256/table
A25: TAK
A26: NIE | C26: Źródło przed termo | D26: paliwo: | E26: uśredniona sezonowa sprawność źródła ciepła 1) | F26: współczynnik nakładu nieodnawialnej energii pierwotnej 2) | G26: Wskaźniki emisji zanieczyszczeń - przeliczone na GJ | J26: Wskaźniki emisji zanieczyszczeń - przeliczenie na MWh (do sporządzenia obliczeń metodą wskaźnikową)
G27: CO2 3) | H27: PM10 4) | I27: BaP 4) | J27: CO2 | K27: PM10 | L27: BaP
G28: kg/GJ | H28: g/GJ | I28: g/GJ | J28: kg/MWh | K28: g/MWh | L28: g/MWh
C29: Istniejące źródło ciepła na paliwo stałe - "kopciuch" | D29: =VLOOKUP($C29,$C$4:$L$19,2,FALSE) -> paliwo stałe | E29: =VLOOKUP($C29,$C$4:$L$19,3,FALSE) -> 0.65 | F29: =VLOOKUP($C29,$C$4:$L$19,4,FALSE) -> 1.1 | G29: =VLOOKUP($C29,$C$4:$L$19,5,FALSE) -> 94.770 | H29: =VLOOKUP($C29,$C$4:$L$19,6,FALSE) -> 427.000 | I29: =VLOOKUP($C29,$C$4:$L$19,7,FALSE) -> 0.280 | J29: =VLOOKUP($C29,$C$4:$L$19,8,FALSE) -> 341.172 | K29: =VLOOKUP($C29,$C$4:$L$19,9,FALSE) -> 1,537.200 | L29: =VLOOKUP($C29,$C$4:$L$19,10,FALSE) -> 1.008
C30: Podłączenie do sieci ciepłowniczej | D30: =VLOOKUP(C5,$C$4:$L$19,2,FALSE) -> sieć ciepłownicza | E30: =VLOOKUP(C5,$C$4:$L$19,3,FALSE) -> 0.95 | F30: =VLOOKUP(C5,$C$4:$L$19,4,FALSE) -> 1.3 | G30: =VLOOKUP(C5,$C$4:$L$19,5,FALSE) -> 93.490 | H30: =VLOOKUP(C5,$C$4:$L$19,6,FALSE) -> 0.000 | I30: =VLOOKUP(C5,$C$4:$L$19,7,FALSE) -> 0.000 | J30: =VLOOKUP(C5,$C$4:$L$19,8,FALSE) -> 336.564 | K30: =VLOOKUP(C5,$C$4:$L$19,9,FALSE) -> 0.000 | L30: =VLOOKUP(C5,$C$4:$L$19,10,FALSE) -> 0.000
C31: Pompa ciepła | D31: =VLOOKUP(C6,$C$4:$L$19,2,FALSE) -> energia elektryczna | E31: =VLOOKUP(C6,$C$4:$L$19,3,FALSE) -> 2.8 | F31: =VLOOKUP(C6,$C$4:$L$19,4,FALSE) -> 3 | G31: =VLOOKUP(C6,$C$4:$L$19,5,FALSE) -> 193.889 | H31: =VLOOKUP(C6,$C$4:$L$19,6,FALSE) -> 0.000 | I31: =VLOOKUP(C6,$C$4:$L$19,7,FALSE) -> 0.000 | J31: =VLOOKUP(C6,$C$4:$L$19,8,FALSE) -> 698.000 | K31: =VLOOKUP(C6,$C$4:$L$19,9,FALSE) -> 0.000 | L31: =VLOOKUP(C6,$C$4:$L$19,10,FALSE) -> 0.000
C32: Kocioł gazowy | D32: =VLOOKUP(C10,$C$4:$L$19,2,FALSE) -> gaz ziemny | E32: =VLOOKUP(C10,$C$4:$L$19,3,FALSE) -> 0.95 | F32: =VLOOKUP(C10,$C$4:$L$19,4,FALSE) -> 1.1 | G32: =VLOOKUP(C10,$C$4:$L$19,5,FALSE) -> 55.440 | H32: =VLOOKUP(C10,$C$4:$L$19,6,FALSE) -> 0.300 | I32: =VLOOKUP(C10,$C$4:$L$19,7,FALSE) -> 0.000 | J32: =VLOOKUP(C10,$C$4:$L$19,8,FALSE) -> 199.584 | K32: =VLOOKUP(C10,$C$4:$L$19,9,FALSE) -> 1.080 | L32: =VLOOKUP(C10,$C$4:$L$19,10,FALSE) -> 0.000
C33: Kocioł olejowy | D33: =VLOOKUP(C12,$C$4:$L$19,2,FALSE) -> olej opałowy | E33: =VLOOKUP(C12,$C$4:$L$19,3,FALSE) -> 0.95 | F33: =VLOOKUP(C12,$C$4:$L$19,4,FALSE) -> 1.1 | G33: =VLOOKUP(C12,$C$4:$L$19,5,FALSE) -> 76.560 | H33: =VLOOKUP(C12,$C$4:$L$19,6,FALSE) -> 2.000 | I33: =VLOOKUP(C12,$C$4:$L$19,7,FALSE) -> 0.000 | J33: =VLOOKUP(C12,$C$4:$L$19,8,FALSE) -> 275.616 | K33: =VLOOKUP(C12,$C$4:$L$19,9,FALSE) -> 7.200 | L33: =VLOOKUP(C12,$C$4:$L$19,10,FALSE) -> 0.000
C34: Kocioł na węgiel minimum 5 klasy | D34: =VLOOKUP(C19,$C$4:$L$19,2,FALSE) -> paliwo stałe | E34: =VLOOKUP(C19,$C$4:$L$19,3,FALSE) -> 0.85 | F34: =VLOOKUP(C19,$C$4:$L$19,4,FALSE) -> 1.1 | G34: =VLOOKUP(C19,$C$4:$L$19,5,FALSE) -> 94.770 | H34: =VLOOKUP(C19,$C$4:$L$19,6,FALSE) -> 18.000 | I34: =VLOOKUP(C19,$C$4:$L$19,7,FALSE) -> 0.000 | J34: =VLOOKUP(C19,$C$4:$L$19,8,FALSE) -> 341.172 | K34: =VLOOKUP(C19,$C$4:$L$19,9,FALSE) -> 64.800 | L34: =VLOOKUP(C19,$C$4:$L$19,10,FALSE) -> 0.000
C35: Kocioł na biomasę minimum 5 klasy | D35: =VLOOKUP(C13,$C$4:$L$19,2,FALSE) -> biomasa | E35: =VLOOKUP(C13,$C$4:$L$19,3,FALSE) -> 0.85 | F35: =VLOOKUP(C13,$C$4:$L$19,4,FALSE) -> 0.2 | G35: =VLOOKUP(C13,$C$4:$L$19,5,FALSE) -> 112.000 | H35: =VLOOKUP(C13,$C$4:$L$19,6,FALSE) -> 16.000 | I35: =VLOOKUP(C13,$C$4:$L$19,7,FALSE) -> 0.000 | J35: =VLOOKUP(C13,$C$4:$L$19,8,FALSE) -> 0.000 | K35: =VLOOKUP(C13,$C$4:$L$19,9,FALSE) -> 57.600 | L35: =VLOOKUP(C13,$C$4:$L$19,10,FALSE) -> 0.000
C36: Ogrzewanie elektryczne | D36: =VLOOKUP($C36,$C$4:$L$19,2,FALSE) -> energia elektryczna | E36: =VLOOKUP($C36,$C$4:$L$19,3,FALSE) -> 1 | F36: =VLOOKUP($C36,$C$4:$L$19,4,FALSE) -> 3 | G36: =VLOOKUP($C36,$C$4:$L$19,5,FALSE) -> 193.889 | H36: =VLOOKUP($C36,$C$4:$L$19,6,FALSE) -> 0.000 | I36: =VLOOKUP($C36,$C$4:$L$19,7,FALSE) -> 0.000 | J36: =VLOOKUP($C36,$C$4:$L$19,8,FALSE) -> 698.000 | K36: =VLOOKUP($C36,$C$4:$L$19,9,FALSE) -> 0.000 | L36: =VLOOKUP($C36,$C$4:$L$19,10,FALSE) -> 0.000
C38: Nie obejmowało wymiany źródła ciepła
C39: Podłączenie do sieci ciepłowniczej wraz z przyłączem
C40: Pompa ciepła powietrze/woda
C41: Pompa ciepła powietrze/woda o podwyższonej klasie efektywności energetycznej
C42: Pompa ciepła typu powietrze/powietrze
C43: Gruntowa pompa ciepła o podwyższonej klasie efektywności energetycznej
C44: Kocioł gazowy kondensacyjny
C45: Kotłownia gazowa (w tym: przyłącze gazowe i instalacja)
C46: Kocioł olejowy kondensacyjny
C47: Kocioł zgazowujący drewno
C48: Kocioł zgazowujący drewno o podwyższonym standardzie
C49: Kocioł na pellet drzewny
C50: Kocioł na pellet drzewny o podwyższonym standardzie
C51: Ogrzewanie elektryczne
